bitfinex/quotes_BTCUSD_20250314
["timestamp","ask_amount","ask_price","bid_price","bid_amount"]
[1741992853223,0.0593615,84724.0,84723.0,0.359761]
[1741992853432,0.02359203,84726.0,84725.0,0.236057]
[1741992854045,0.43101503,84726.0,84725.0,0.236057]
[1741992855438,0.32826903,84726.0,84725.0,0.236057]
[1741992857313,0.26306803,84726.0,84725.0,0.236057]
[1741992858346,0.02359203,84726.0,84725.0,0.325559]
[1741992858586,0.13129903,84726.0,84725.0,0.325559]
[1741992858781,0.43129903,84726.0,84725.0,0.325559]
[1741992858986,1.78698855,84745.0,84732.0,0.236035]
[1741992859249,1.406089,84744.0,84733.0,0.236034]
[1741992859451,0.476503,84744.0,84742.0,0.236008]
[1741992859652,1.80828867,84745.0,84744.0,0.236004]
[1741992859856,0.193011,84744.0,84742.0,0.313708]
[1741992860270,1.80828867,84745.0,84744.0,0.236004]
[1741992860499,2.02785985,84745.0,84744.0,0.236004]
[1741992860920,2.02649785,84745.0,84744.0,0.236004]
[1741992861119,2.03189785,84745.0,84744.0,0.236004]
[1741992863440,2.03189785,84745.0,84742.0,0.0777]
[1741992863642,1.79947566,84745.0,84744.0,0.0118]
[1741992864054,1.79947566,84745.0,84744.0,0.08414429]
[1741992864890,0.02159395,84745.0,84743.0,0.08131674]
[1741992865091,0.02159395,84745.0,84742.0,0.23601]
[1741992865300,0.02159395,84745.0,84744.0,0.0118]
[1741992865515,0.02159395,84745.0,84743.0,0.236007]
[1741992865516,0.02159395,84745.0,84743.0,0.13601147]
[1741992865723,0.02159395,84745.0,84742.0,0.25522574]
[1741992865962,0.02159395,84745.0,84744.0,0.0168]
[1741992866160,0.02159395,84745.0,84744.0,0.1168]
[1741992866535,0.02159395,84745.0,84744.0,0.22195488]
[1741992866785,0.02159395,84745.0,84744.0,0.21895488]
[1741992867185,0.02159395,84745.0,84744.0,0.1628]
[1741992867356,0.02159395,84745.0,84744.0,0.27868]
[1741992867567,0.02159395,84745.0,84744.0,0.27522533]
[1741992867775,0.02159395,84745.0,84744.0,0.003]
[1741992867969,0.02159395,84745.0,84744.0,0.002]
[1741992868341,0.32159395,84745.0,84744.0,0.002]
[1741992868544,0.3,84744.0,84743.0,0.233295]
[1741992868766,0.34699,84744.0,84743.0,0.230175]
[1741992868942,0.296992,84744.0,84743.0,0.230175]
[1741992869576,0.3,84743.0,84742.0,0.236007]
[1741992869951,1.181002,84743.0,84738.0,0.236021]
[1741992870153,1.742653,84742.0,84733.0,0.02953743]
[1741992870329,1.742653,84742.0,84734.0,0.236032]
[1741992870567,1.742653,84742.0,84735.0,0.236028]
[1741992870739,1.697344,84741.0,84735.0,0.236028]
[1741992870946,1.621981,84740.0,84735.0,0.236028]
[1741992871150,1.019771,84742.0,84738.0,0.236019]
[1741992871282,1.019771,84742.0,84741.0,0.236013]
[1741992871283,0.3,84742.0,84741.0,0.236013]
[1741992872969,0.31850615,84742.0,84741.0,0.236013]
[1741992873189,0.31850615,84742.0,84741.0,0.235013]
[1741992873954,0.32150615,84742.0,84741.0,0.235013]
[1741992875137,0.78201615,84742.0,84741.0,0.235013]
[1741992875996,0.78201615,84742.0,84741.0,0.23337082]
[1741992876197,0.78201615,84742.0,84741.0,0.22042779]
[1741992876608,0.48201615,84742.0,84741.0,0.6991]
[1741992876810,0.56469785,84742.0,84741.0,0.53051264]
[1741992877031,0.56469785,84742.0,84741.0,0.29586117]
[1741992877258,0.56469785,84742.0,84741.0,0.24698439]
[1741992877259,0.5461917,84742.0,84741.0,0.24698439]
[1741992877490,0.5461917,84742.0,84741.0,0.6991]
[1741992877828,0.5461917,84742.0,84741.0,0.55964]
[1741992878024,0.46151,84742.0,84741.0,0.3500958]
[1741992878245,0.01454085,84741.0,84725.0,0.51066144]
[1741992878487,0.01454085,84741.0,84735.0,0.000339]
[1741992878488,0.01454085,84739.0,84735.0,0.000339]
[1741992878684,0.01454085,84737.0,84735.0,0.000339]
[1741992878895,3.70255385,84736.0,84735.0,0.000339]
[1741992879098,3.688013,84736.0,84735.0,0.000339]
[1741992879928,3.70652165,84736.0,84726.0,0.4146]
[1741992880139,3.555093,84735.0,84728.0,0.236047]
[1741992880337,3.555093,84735.0,84726.0,0.4146]
[1741992880537,3.555093,84735.0,84726.0,0.650653]
[1741992880874,3.555093,84735.0,84726.0,0.4146]
[1741992881853,0.3,84734.0,84726.0,0.4146]
[1741992882056,0.3,84732.0,84728.0,0.236048]
[1741992882258,0.366222,84731.0,84728.0,0.236048]
[1741992882436,0.3,84730.0,84729.0,0.4146]
[1741992882648,0.976889,84730.0,84729.0,0.4146]
[1741992883576,0.979889,84730.0,84729.0,0.4146]
[1741992883904,0.979889,84730.0,84729.0,0.36305248]
[1741992885745,0.981889,84730.0,84729.0,0.36305248]
[1741992890369,1.0003993,84730.0,84729.0,0.36305248]
[1741992892221,0.9690633,84730.0,84729.0,0.44215248]
[1741992892425,0.8269933,84730.0,84729.0,0.36305248]
[1741992892624,0.0235103,84730.0,84729.0,0.36305248]
[1741992892820,1.230124,84730.0,84729.0,0.36305248]
[1741992893062,0.01851003,84730.0,84729.0,0.36305248]
[1741992893404,1.28503203,84730.0,84729.0,0.36305248]
[1741992893577,1.44394203,84730.0,84729.0,0.36305248]
[1741992893971,1.46804059,84730.0,84729.0,0.36305248]
[1741992894175,1.34985359,84730.0,84729.0,0.36339168]
[1741992894492,1.35002319,84730.0,84729.0,0.36339168]
[1741992894843,1.65002319,84730.0,84729.0,0.36339168]
[1741992895659,1.64502319,84730.0,84729.0,0.36339168]
[1741992896324,1.63151316,84730.0,84729.0,0.36339168]
[1741992897833,1.41838916,84730.0,84729.0,0.36339168]
[1741992899063,1.41838916,84730.0,84729.0,0.34488169]
[1741992900417,1.06642956,84730.0,84729.0,0.34488169]
[1741992900635,0.80961056,84730.0,84729.0,0.34488169]
[1741992900842,0.63218556,84730.0,84729.0,0.42218169]
[1741992900963,0.55364856,84730.0,84729.0,0.42218169]
[1741992902059,0.55564856,84730.0,84729.0,0.65822769]
[1741992902643,0.55564856,84730.0,84729.0,0.42218169]
[1741992902852,0.55664856,84730.0,84729.0,0.42218169]
[1741992903232,0.32167956,84730.0,84729.0,0.42218169]
[1741992903413,1.29785056,84730.0,84729.0,0.42218169]
[1741992903955,1.17357056,84730.0,84729.0,0.42218169]
[1741992904253,1.12572256,84730.0,84729.0,0.42218169]
[1741992904558,1.05971256,84730.0,84729.0,0.42218169]
[1741992904778,0.92456556,84730.0,84729.0,0.42218169]
[1741992905015,0.53261456,84730.0,84729.0,0.42218169]
[1741992905788,0.18807207,84730.0,84729.0,0.0776392]
[1741992906002,1.853668,84736.0,84729.0,0.3136842]
[1741992906171,1.261649,84735.0,84730.0,0.236041]
[1741992906372,1.107679,84734.0,84730.0,0.236041]
[1741992906569,1.107679,84734.0,84729.0,0.3136842]
[1741992906570,0.384847,84733.0,84731.0,0.236039]
[1741992906943,0.320187,84732.0,84731.0,0.236039]
[1741992907866,0.620187,84732.0,84731.0,0.236039]
[1741992908812,0.3,84731.0,84729.0,0.3136852]
[1741992909023,1.125119,84731.0,84729.0,0.3136852]
[1741992909354,1.124265,84730.0,84729.0,0.3136852]
[1741992909556,0.3,84730.0,84729.0,0.3136852]
[1741992909774,1.126265,84730.0,84729.0,0.3136852]
[1741992910819,1.127265,84730.0,84729.0,0.3136852]
[1741992911740,1.129265,84730.0,84729.0,0.7282852]
[1741992912025,1.090158,84730.0,84729.0,0.7282852]
[1741992912232,1.090158,84730.0,84729.0,0.4922392]
[1741992913915,0.303,84730.0,84729.0,0.4922392]
[1741992914185,1.383298,84730.0,84729.0,0.4922392]
[1741992915658,1.147783,84730.0,84729.0,0.4922392]
[1741992915937,1.109007,84730.0,84729.0,0.4922392]
[1741992916148,0.809007,84730.0,84729.0,0.4922392]
[1741992916369,0.910731,84730.0,84729.0,0.4922392]
[1741992917210,0.897307,84730.0,84729.0,0.4922392]
[1741992917388,0.896307,84730.0,84729.0,0.4922392]
[1741992917723,0.897307,84730.0,84729.0,0.4922392]
[1741992918781,0.5092166,84730.0,84729.0,0.4922392]
[1741992919165,0.4168806,84730.0,84729.0,0.4922392]
[1741992922161,0.0185084,84732.0,84731.0,0.3602734]
[1741992922384,0.0185084,84732.0,84731.0,0.5452734]
[1741992922589,0.01109669,84740.0,84739.0,0.374118]
[1741992923434,0.0001695,84742.0,84741.0,0.247813]
[1741992924375,0.0001695,84742.0,84741.0,0.246813]
[1741992925207,0.01867453,84742.0,84741.0,0.246813]
[1741992925981,0.01867453,84742.0,84741.0,0.36638803]
[1741992926581,0.01867453,84742.0,84741.0,0.246813]
[1741992927544,0.0001695,84772.0,84744.0,0.352804]
[1741992927751,0.0001695,84772.0,84744.0,0.429704]
[1741992928753,0.0001695,84772.0,84744.0,0.432704]
[1741992928953,0.02397517,84765.0,84744.0,0.432704]
[1741992930136,0.0001695,84772.0,84744.0,0.477904]
[1741992930373,0.0001695,84772.0,84744.0,0.59747903]
[1741992930852,0.0239905,84768.0,84744.0,0.60047903]
[1741992931893,0.01879733,84745.0,84744.0,0.60047903]
[1741992932090,0.01879733,84745.0,84744.0,1.11114047]
[1741992934374,0.0001695,84772.0,84769.0,0.235935]
[1741992934573,2.809207,84771.0,84770.0,0.37712814]
[1741992935544,2.791726,84771.0,84770.0,0.37712814]
[1741992936110,2.735043,84771.0,84770.0,0.37712814]
[1741992937140,2.736043,84771.0,84770.0,0.37712814]
[1741992937566,2.724212,84771.0,84770.0,0.37712814]
[1741992937792,2.7437143,84771.0,84770.0,0.37712814]
[1741992940207,0.3205023,84771.0,84770.0,0.37712814]
[1741992940408,3.8527333,84771.0,84770.0,0.37712814]
[1741992942636,3.8527333,84771.0,84770.0,0.37772814]
[1741992943840,3.8529029,84771.0,84770.0,0.37772814]
[1741992945718,3.3799929,84771.0,84770.0,0.37772814]
[1741992945871,2.4441479,84771.0,84770.0,0.37772814]
[1741992952971,2.51716256,84771.0,84770.0,0.37772814]
[1741992956401,2.51216256,84771.0,84770.0,0.37772814]
[1741992960194,2.21716256,84771.0,84770.0,0.37772814]
[1741992960402,3.62591756,84771.0,84770.0,0.37772814]
[1741992961018,3.88976859,84771.0,84770.0,0.0006]
[1741992961223,0.247751,84762.0,84755.0,0.34773239]
[1741992961457,0.24136982,84759.0,84755.0,0.30654803]
[1741992961662,3.532231,84758.0,84755.0,0.30654803]
[1741992961869,3.61946145,84758.0,84755.0,0.30654803]
[1741992962117,3.832231,84757.0,84755.0,0.30654803]
[1741992962356,3.832231,84756.0,84755.0,0.30654803]
[1741992963513,3.8555031,84756.0,84755.0,0.30654803]
[1741992963695,3.8575031,84756.0,84755.0,0.30654803]
[1741992963909,3.8605031,84756.0,84755.0,0.30654803]
[1741992968323,3.837231,84756.0,84755.0,0.28804214]
[1741992969988,3.837231,84756.0,84755.0,0.28838114]
[1741992970886,0.305,84756.0,84755.0,0.28838114]
[1741992971386,3.837231,84756.0,84755.0,0.26987527]
[1741992973379,3.86057682,84756.0,84755.0,0.26987527]
[1741992973798,3.87908305,84756.0,84755.0,0.26987527]
[1741992974247,3.87908305,84756.0,84755.0,0.25136903]
[1741992974458,3.86057682,84756.0,84755.0,0.25136903]
[1741992977865,3.87908259,84756.0,84755.0,0.25136903]
[1741992978371,3.85573677,84756.0,84755.0,0.25136903]
[1741992982300,3.85590627,84756.0,84755.0,0.25136903]
[1741992983367,3.86700083,84756.0,84755.0,0.25136903]
[1741992984859,3.89040174,84756.0,84755.0,0.25136903]
[1741992986041,3.89040174,84756.0,84755.0,0.18480164]
[1741992986262,3.95494162,84756.0,84755.0,0.18480164]
[1741992986481,0.42271062,84756.0,84755.0,0.18480164]
[1741992986700,3.95494162,84756.0,84755.0,0.18480164]
[1741992987130,3.89040174,84756.0,84755.0,0.18480164]
[1741992988066,3.86700083,84756.0,84755.0,0.18480164]
[1741992988475,3.85590627,84756.0,84755.0,0.18480164]
[1741992993817,3.8374005,84756.0,84755.0,0.18480164]
[1741992994249,3.8613197,84756.0,84755.0,0.18480164]
[1741992995225,3.98089473,84756.0,84755.0,0.000339]
[1741992996735,4.04606477,84756.0,84755.0,0.000339]
[1741992996967,3.93758499,84756.0,84755.0,0.00014111]
[1741992998359,3.91366579,84756.0,84755.0,0.00014111]
[1741993003299,3.93731242,84756.0,84755.0,0.00014111]
[1741993003647,3.95581873,84756.0,84755.0,0.00014111]
[1741993007757,3.95581873,84756.0,84755.0,5.738e-05]
[1741993008337,3.9321721,84756.0,84755.0,5.738e-05]
[1741993011005,0.3999411,84756.0,84755.0,5.738e-05]
[1741993011222,3.9321721,84756.0,84755.0,5.738e-05]
[1741993016304,3.95555836,84756.0,84755.0,5.738e-05]
[1741993018332,3.9321721,84756.0,84755.0,5.738e-05]
[1741993019351,3.9321721,84756.0,84755.0,1.738e-05]
[1741993023240,0.3999411,84756.0,84755.0,1.738e-05]
[1741993023840,0.35889626,84756.0,84755.0,1.738e-05]
[1741993024044,3.89112726,84756.0,84755.0,1.738e-05]
[1741993024334,3.94520205,84756.0,84755.0,1.738e-05]
[1741993025369,4.06477708,84756.0,84755.0,1.738e-05]
[1741993025953,4.07587233,84756.0,84755.0,1.738e-05]
[1741993026722,3.9562973,84756.0,84755.0,1.738e-05]
[1741993028288,3.9321721,84756.0,84755.0,1.738e-05]
[1741993030823,0.3,84755.0,84747.0,0.18446264]
[1741993031062,3.832231,84755.0,84747.0,0.18446264]
[1741993031285,0.3,84753.0,84747.0,0.18446264]
[1741993031523,0.3,84751.0,84747.0,0.18446264]
[1741993031749,0.3,84749.0,84747.0,0.18446264]
[1741993031952,3.104997,84748.0,84747.0,0.16595759]
[1741993032423,2.76771,84748.0,84747.0,0.16595759]
[1741993032634,2.70889,84748.0,84747.0,0.16595759]
[1741993033034,2.52439,84748.0,84747.0,0.16595759]
[1741993034143,1.586669,84748.0,84747.0,0.16595759]
[1741993034280,1.553726,84748.0,84747.0,0.16595759]
[1741993034722,1.554726,84748.0,84747.0,0.16695759]
[1741993034908,1.57323189,84748.0,84747.0,0.16695759]
[1741993043326,1.59682008,84748.0,84747.0,0.16695759]
[1741993044545,0.34309408,84748.0,84747.0,0.16695759]
[1741993044741,0.34309408,84748.0,84747.0,0.16729679]
[1741993045470,2.93806208,84748.0,84747.0,0.16729679]
[1741993045673,3.00369567,84748.0,84747.0,0.16729679]
[1741993045894,3.46065699,84748.0,84747.0,0.0013392]
[1741993046092,0.747798,84746.0,84745.0,0.0003392]
[1741993046249,6.80363945,84746.0,84745.0,0.0003392]
[1741993046663,0.547807,84743.0,84742.0,0.0003392]
[1741993046911,4.080038,84743.0,84742.0,0.0003392]
[1741993047626,4.08011129,84743.0,84742.0,0.0003392]
[1741993047827,4.19968632,84743.0,84742.0,0.0003392]
[1741993048237,4.27030991,84743.0,84742.0,0.0013392]
[1741993048439,4.27430991,84743.0,84742.0,0.0013392]
[1741993048800,4.36525076,84743.0,84742.0,2e-07]
[1741993049005,1.55152984,84743.0,84742.0,2e-07]
[1741993049404,1.56262413,84743.0,84742.0,2e-07]
[1741993050509,0.747845,84730.0,84729.0,0.0003392]
[1741993050651,4.65312582,84730.0,84729.0,0.0003392]
[1741993051278,4.67163801,84730.0,84729.0,0.0003392]
[1741993051488,4.42980108,84730.0,84729.0,0.0003392]
[1741993051877,4.43480108,84730.0,84729.0,0.0003392]
[1741993052076,4.43980108,84730.0,84729.0,0.0003392]
[1741993052356,4.45160308,84730.0,84729.0,0.0003392]
[1741993054508,4.57117811,84730.0,84729.0,0.0003392]
[1741993055984,0.25308938,84720.0,84710.0,0.16595759]
[1741993056116,3.78532038,84720.0,84710.0,0.16595759]
[1741993056725,3.80383348,84720.0,84710.0,0.16595759]
[1741993057281,3.81563648,84720.0,84710.0,0.16595759]
[1741993057410,4.05170748,84720.0,84710.0,0.16595759]
[1741993057858,4.05570748,84720.0,84710.0,0.16595759]
[1741993058063,4.06070748,84720.0,84710.0,0.16595759]
[1741993059040,4.0842322,84720.0,84710.0,0.16595759]
[1741993059514,4.20380723,84720.0,84710.0,0.16595759]
[1741993061148,0.547889,84715.0,84710.0,0.16595759]
[1741993061349,4.21184,84715.0,84710.0,0.16595759]
[1741993062304,4.21184,84715.0,84714.0,0.00075367]
[1741993062503,4.21684,84715.0,84714.0,0.00075367]
[1741993063282,3.968951,84715.0,84714.0,0.08255367]
[1741993063553,3.980755,84715.0,84714.0,0.08255367]
[1741993063816,3.975755,84715.0,84714.0,0.00075367]
[1741993064334,3.99426986,84715.0,84714.0,0.00075367]
[1741993064694,3.99926986,84715.0,84714.0,0.00075367]
[1741993065226,4.11884489,84715.0,84714.0,0.00075367]
[1741993065953,0.448524,84715.0,84714.0,0.00075367]
[1741993066134,3.980755,84715.0,84714.0,0.00075367]
[1741993067964,3.99185587,84715.0,84714.0,0.00075367]
[1741993068550,4.01037083,84715.0,84714.0,0.00075367]
[1741993069349,4.07599763,84715.0,84714.0,0.00075367]
[1741993069558,4.19557266,84715.0,84714.0,0.00075367]
[1741993072222,4.07599763,84715.0,84714.0,0.00075367]
[1741993073586,4.16753848,84715.0,84714.0,2.8e-07]
[1741993073808,0.63530748,84715.0,84714.0,2.8e-07]
[1741993074421,0.63030748,84715.0,84714.0,2.8e-07]
[1741993074971,0.75488251,84715.0,84714.0,2.8e-07]
[1741993075209,0.77834555,84715.0,84714.0,2.8e-07]
[1741993075492,2.03838372,84715.0,84714.0,2.8e-07]
[1741993076173,0.011805,84706.0,84702.0,0.000339]
[1741993076397,4.32151582,84706.0,84705.0,0.00046353]
[1741993077024,0.56246485,84703.0,84702.0,5.3e-07]
[1741993077172,3.48673988,84703.0,84702.0,9.6e-07]
[1741993077376,3.51148854,84703.0,84702.0,9.6e-07]
[1741993077574,3.66438523,84703.0,84702.0,9.6e-07]
[1741993077939,3.73001203,84703.0,84702.0,9.6e-07]
[1741993078339,3.73501203,84703.0,84702.0,9.6e-07]
[1741993078756,3.7461129,84703.0,84702.0,9.6e-07]
[1741993079557,4.00600279,84703.0,84702.0,9.6e-07]
[1741993079772,4.74154879,84703.0,84702.0,9.6e-07]
[1741993079992,4.74154879,84703.0,84681.0,0.21325759]
[1741993079993,0.547985,84682.0,84681.0,0.19473848]
[1741993080243,2.237442,84682.0,84681.0,0.19486298]
[1741993080417,0.547985,84682.0,84681.0,0.19486298]
[1741993080669,1.802624,84682.0,84681.0,0.27436298]
[1741993080864,2.112122,84682.0,84681.0,0.27436298]
[1741993081057,2.13064263,84682.0,84681.0,0.27436298]
[1741993081213,2.13264263,84682.0,84681.0,0.27436298]
[1741993081830,2.13264263,84682.0,84681.0,0.16608209]
[1741993082466,7.22856798,84682.0,84681.0,0.16608209]
[1741993082870,7.22656798,84682.0,84681.0,0.16608209]
[1741993083271,7.23056798,84682.0,84681.0,0.16608209]
[1741993084077,9.53526798,84682.0,84681.0,0.16608209]
[1741993084475,9.53526798,84682.0,84681.0,0.0001245]
[1741993085511,7.97113098,84682.0,84681.0,0.0001245]
[1741993085860,7.98223684,84682.0,84681.0,0.0001245]
[1741993086498,8.11399684,84682.0,84681.0,0.0001245]
[1741993087781,8.09282015,84682.0,84681.0,0.0001245]
[1741993089076,8.1165767,84682.0,84681.0,0.0001245]
[1741993089478,8.09182804,84682.0,84681.0,0.0001245]
[1741993090355,8.1165767,84682.0,84681.0,0.0001245]
[1741993091609,8.04754795,84682.0,84681.0,0.0001245]
[1741993091749,8.17930795,84682.0,84681.0,0.0001245]
[1741993091972,4.27385774,84682.0,84681.0,0.1278245]
[1741993092343,4.58566574,84682.0,84681.0,0.1278245]
[1741993092490,4.26714511,84682.0,84681.0,0.1278245]
[1741993092692,4.50441386,84682.0,84681.0,0.1278245]
[1741993093149,4.50041386,84682.0,84681.0,0.1278245]
[1741993093513,4.492308,84682.0,84681.0,0.1281639]
[1741993095026,4.63040442,84682.0,84681.0,0.0004639]
[1741993095252,0.011808,84682.0,84681.0,0.0004639]
[1741993095456,3.189008,84682.0,84681.0,0.0004639]
[1741993095770,3.19872186,84682.0,84681.0,0.0004639]
[1741993095987,3.1802,84682.0,84681.0,0.0004639]
[1741993096556,3.1772,84682.0,84681.0,0.0004639]
[1741993096731,0.13176,84690.0,84681.0,0.0004639]
[1741993096732,3.1772,84689.0,84681.0,0.0004639]
[1741993096946,0.004,84682.0,84681.0,0.0004639]
[1741993098046,3.4796,84682.0,84681.0,0.0004639]
[1741993098452,3.495722,84682.0,84681.0,0.0004639]
[1741993099575,3.51988396,84682.0,84681.0,0.0004639]
[1741993100003,3.495722,84682.0,84681.0,0.0004639]
[1741993100239,3.499722,84682.0,84681.0,0.0004639]
[1741993105696,3.4998917,84682.0,84681.0,0.0004639]
[1741993106111,3.4958917,84682.0,84681.0,0.0004639]
[1741993106457,3.5008917,84682.0,84681.0,0.0004639]
[1741993107056,3.52005366,84682.0,84681.0,0.0004639]
[1741993107251,3.52505366,84682.0,84681.0,0.0004639]
[1741993107868,3.54773994,84682.0,84681.0,0.0004639]
[1741993109370,3.67949994,84682.0,84681.0,0.0004639]
[1741993111090,3.26489994,84682.0,84681.0,0.0004639]
[1741993112945,3.56489994,84682.0,84681.0,0.0004639]
[1741993113150,3.54221366,84682.0,84681.0,0.0004639]
[1741993113786,3.52369166,84682.0,84681.0,0.0004639]
[1741993114205,3.4995297,84682.0,84681.0,0.0004639]
[1741993115094,3.52369166,84682.0,84681.0,0.0004639]
[1741993116444,3.4995297,84682.0,84681.0,0.0004639]
[1741993116850,3.21669,84682.0,84681.0,0.0004639]
[1741993117366,3.2168597,84682.0,84681.0,0.0004639]
[1741993120940,3.24102166,84682.0,84681.0,0.0004639]
[1741993121514,3.2168597,84682.0,84681.0,0.0004639]
[1741993121728,3.24102166,84682.0,84681.0,0.0004639]
[1741993122318,3.2168597,84682.0,84681.0,0.0004639]
[1741993122571,3.24102166,84682.0,84681.0,0.0004639]
[1741993122796,2.82642166,84682.0,84681.0,0.0004639]
[1741993123582,3.52642166,84682.0,84681.0,0.0004639]
[1741993123783,3.5022597,84682.0,84681.0,0.0004639]
[1741993124639,3.8022597,84682.0,84681.0,0.0004639]
[1741993124844,0.3,84681.0,84664.0,0.1083439]
[1741993125044,0.3,84679.0,84664.0,0.1083439]
[1741993125522,0.3,84677.0,84664.0,0.1083439]
[1741993125959,0.3,84675.0,84664.0,0.1083439]
[1741993126161,0.3,84673.0,84664.0,0.1083439]
[1741993126745,0.3,84671.0,84664.0,0.1083439]
[1741993126997,0.3,84669.0,84664.0,0.1083439]
[1741993127203,0.3,84667.0,84664.0,0.1083439]
[1741993127361,0.3,84665.0,84664.0,0.1083439]
[1741993127733,3.08493,84665.0,84664.0,0.1083439]
[1741993128479,2.67033,84665.0,84664.0,0.1083439]
[1741993128821,0.003,84665.0,84664.0,0.1083439]
[1741993129024,2.67333,84665.0,84664.0,0.1083439]
[1741993131531,2.97333,84665.0,84664.0,0.1083439]
[1741993134470,2.55873,84665.0,84664.0,0.1083439]
[1741993134694,2.25873,84665.0,84664.0,0.1083439]
[1741993136662,2.55873,84665.0,84664.0,0.1083439]
[1741993139256,2.323741,84665.0,84664.0,0.1083439]
[1741993140381,1.909141,84665.0,84664.0,0.1083439]
[1741993140586,1.909141,84665.0,84664.0,0.1086835]
[1741993141595,1.909141,84665.0,84664.0,0.3449105]
[1741993141880,1.911141,84665.0,84664.0,0.3449105]
[1741993143281,1.909141,84665.0,84664.0,0.3449105]
[1741993143903,1.909141,84665.0,84664.0,0.46448553]
[1741993144137,1.8936,84680.0,84674.0,0.1303]
[1741993144337,1.909141,84679.0,84675.0,0.0828]
[1741993144711,1.909141,84679.0,84675.0,0.0808]
[1741993145434,0.004,84680.0,84675.0,0.236195]
[1741993145638,1.909141,84679.0,84675.0,0.236195]
[1741993145932,0.9013,84678.0,84677.0,0.295498]
[1741993146132,0.00029394,84682.0,84681.0,0.0475]
[1741993146287,0.00029394,84682.0,84681.0,0.0435]
[1741993147287,1.49483494,84682.0,84681.0,0.0435]
[1741993147712,1.49483494,84682.0,84681.0,0.1263]
[1741993148353,1.79483494,84682.0,84681.0,0.1263]
[1741993148991,1.79483494,84682.0,84681.0,0.1253]
[1741993149730,1.79583494,84682.0,84681.0,0.1253]
[1741993150139,1.79483494,84682.0,84681.0,0.1253]
[1741993151077,1.79483494,84682.0,84681.0,0.1714495]
[1741993151278,1.79483494,84682.0,84681.0,0.1253]
[1741993152091,1.380235,84682.0,84681.0,0.1253]
[1741993153867,1.380235,84682.0,84681.0,0.36148]
[1741993154068,1.380235,84682.0,84681.0,0.373289]
[1741993154273,0.408,84682.0,84681.0,0.473289]
[1741993154477,0.408,84682.0,84681.0,0.59286403]
[1741993155153,0.408,84682.0,84681.0,0.473289]
[1741993156156,0.408,84682.0,84681.0,0.479289]
[1741993156354,0.4654,84682.0,84681.0,0.479289]
[1741993156513,0.2368,84696.0,84695.0,0.236141]
[1741993156718,1.31711825,84696.0,84695.0,0.314841]
[1741993158650,1.32011825,84696.0,84695.0,0.314841]
[1741993159881,1.62011825,84696.0,84695.0,0.375248]
[1741993160212,1.38331825,84696.0,84695.0,0.475248]
[1741993160738,0.968719,84696.0,84695.0,0.475248]
[1741993161387,0.965719,84696.0,84695.0,0.463441]
[1741993161789,0.966719,84696.0,84695.0,0.463441]
[1741993163274,0.301,84696.0,84695.0,0.463441]
[1741993163740,0.966719,84696.0,84695.0,0.463441]
[1741993164939,0.9668887,84696.0,84695.0,0.463441]
[1741993165563,0.6668887,84696.0,84695.0,0.463441]
[1741993166613,0.2522887,84696.0,84695.0,0.463441]
[1741993172566,0.0171687,84725.0,84703.0,0.236119]
[1741993172782,0.01729311,84725.0,84704.0,0.92526144]
[1741993173012,5.05,84724.0,84704.0,1.16137544]
[1741993173473,5.05,84724.0,84705.0,0.0759]
[1741993174284,0.0455,84723.0,84704.0,0.92526144]
[1741993174875,5.05,84722.0,84704.0,0.92526144]
[1741993176599,5.053,84722.0,84704.0,0.92526144]
[1741993176803,5.05,84721.0,84704.0,0.92526144]
[1741993178082,5.05,84722.0,84704.0,0.92526144]
[1741993178305,5.05,84722.0,84698.0,0.0759]
[1741993178306,0.003,84721.0,84705.0,0.92526144]
[1741993178526,5.05,84720.0,84705.0,0.92526144]
[1741993179040,0.011803,84719.0,84705.0,0.92526144]
[1741993179245,5.05,84718.0,84705.0,0.92526144]
[1741993179400,0.13168,84717.0,84705.0,0.92526144]
[1741993179604,5.05,84716.0,84705.0,0.92526144]
[1741993180387,0.03554,84715.0,84705.0,0.92526144]
[1741993180631,5.05,84714.0,84705.0,0.92526144]
[1741993181410,5.05,84714.0,84705.0,0.92626144]
[1741993181815,5.05,84714.0,84705.0,0.92526144]
[1741993182217,5.055,84714.0,84705.0,0.92626144]
[1741993182480,5.05,84713.0,84705.0,0.92626144]
[1741993183896,0.01110291,84712.0,84705.0,0.92626144]
[1741993184056,5.05,84711.0,84705.0,0.92626144]
[1741993184255,5.05,84711.0,84706.0,0.4146]
[1741993185628,0.01110291,84710.0,84706.0,0.4146]
[1741993185773,5.05,84709.0,84706.0,0.4146]
[1741993188431,5.05,84710.0,84706.0,0.4146]
[1741993188630,2.1274,84714.0,84706.0,0.4146]
[1741993188867,5.05,84713.0,84706.0,0.4146]
[1741993189070,0.005,84709.0,84706.0,0.4146]
[1741993189225,5.05,84708.0,84706.0,0.4146]
[1741993189427,4.6354,84708.0,84706.0,0.51066144]
[1741993189651,4.6354,84707.0,84706.0,0.51066144]
[1741993189847,0.005,84710.0,84706.0,0.51066144]
[1741993190050,4.6354,84709.0,84706.0,0.51066144]
[1741993190374,4.6354,84708.0,84706.0,0.51066144]
[1741993190721,4.6354,84707.0,84706.0,0.51066144]
[1741993192625,4.6394,84707.0,84706.0,0.51066144]
[1741993198865,4.2248,84707.0,84706.0,0.92526144]
[1741993200160,4.2248,84707.0,84706.0,0.4146]
[1741993200348,4.2248,84707.0,84706.0,0.4945]
[1741993200547,0.781,84707.0,84706.0,0.62588003]
[1741993200744,0.7173,84707.0,84706.0,0.4945]
[1741993201264,0.7133,84707.0,84706.0,0.4945]
[1741993201521,4.2208,84713.0,84707.0,0.236107]
[1741993201697,4.2208,84713.0,84706.0,0.414939]
[1741993202913,4.2238,84713.0,84706.0,0.414939]
[1741993203118,0.236106,84708.0,84706.0,0.414939]
[1741993203250,4.2208,84707.0,84706.0,0.414939]
[1741993203460,4.2208,84712.0,84706.0,0.414939]
[1741993204254,4.2208,84713.0,84706.0,0.414939]
[1741993204499,4.2248,84713.0,84706.0,0.414939]
[1741993204699,4.2208,84712.0,84706.0,0.414939]
[1741993205278,4.2208,84713.0,84706.0,0.414939]
[1741993205490,0.005,84712.0,84706.0,0.414939]
[1741993205698,4.2208,84711.0,84706.0,0.414939]
[1741993205894,4.2208,84711.0,84707.0,0.4146]
[1741993206150,4.2208,84713.0,84707.0,0.4146]
[1741993207905,0.005,84712.0,84707.0,0.4146]
[1741993208114,4.2208,84711.0,84707.0,0.4146]
[1741993208496,4.2208,84713.0,84707.0,0.4146]
[1741993208696,4.2258,84713.0,84707.0,0.4146]